[Event "MČR v rapid šachu družstev 2019"]
[Site "Teplice, Czech Republic"]
[Date "2019.09.15"]
[Round "3.25"]
[White "Sprenar, Petr"]
[Black "Docekal, Jan"]
[Result "1-0"]
[TimeControl "15 min. + 5s"]
[WhiteElo "2089"]
[BlackElo "2302"]

1. Nf3 {[%clk 00:15:08]} {[%emt 00:00:02]} c5 {[%clk 00:15:10]} {[%emt
00:00:01]} 2. c4 {[%clk 00:15:06]} {[%emt 00:00:06]} Nc6 {[%clk 00:15:13]}
{[%emt 00:00:02]} 3. g3 {[%clk 00:15:10]} g6 {[%clk 00:15:18]} 4. Bg2 {[%clk
00:15:09]} {[%emt 00:00:06]} Bg7 {[%clk 00:15:22]} 5. O-O {[%emt 00:00:03]} Nf6
6. Nc3 {[%clk 00:15:16]} {[%emt 00:00:02]} O-O {[%clk 00:15:30]} {[%emt
00:00:01]} 7. d4 {[%clk 00:15:12]} {[%emt 00:00:09]} cxd4 {[%clk 00:15:34]}
{[%emt 00:00:02]} 8. Nxd4 {[%clk 00:15:15]} {[%emt 00:00:01]} d6 {[%clk
00:15:38]} 9. b3 {[%clk 00:15:05]} {[%emt 00:00:16]} Nxd4 {[%clk 00:14:48]}
{[%emt 00:00:56]} 10. Qxd4 {[%clk 00:15:08]} {[%emt 00:00:01]} Ne4 {[%clk
00:14:52]} {[%emt 00:00:02]} 11. Qxe4 {[%clk 00:14:50]} {[%emt 00:00:23]} Bxc3
{[%clk 00:14:55]} {[%emt 00:00:02]} 12. Bh6 {[%clk 00:14:38]} {[%emt 00:00:16]}
Bxa1 {[%clk 00:14:59]} {[%emt 00:00:02]} 13. Rxa1 {[%clk 00:11:58]} {[%emt
00:02:45]} f6 {[%clk 00:12:04]} {[%emt 00:03:00]} 14. Bxf8 {[%clk 00:11:52]}
{[%emt 00:00:10]} Kxf8 {[%clk 00:12:07]} {[%emt 00:00:02]} 15. Rd1 {[%clk
00:11:15]} {[%emt 00:00:42]} Qc7 {[%clk 00:12:09]} {[%emt 00:00:04]} 16. h4
{[%clk 00:11:11]} {[%emt 00:00:08]} Kg7 {[%clk 00:11:32]} {[%emt 00:00:42]} 17.
h5 {[%clk 00:10:57]} {[%emt 00:00:19]} Rb8 {[%clk 00:11:36]} {[%emt 00:00:01]}
18. hxg6 {[%clk 00:10:31]} {[%emt 00:00:31]} hxg6 {[%clk 00:11:40]} {[%emt
00:00:02]} 19. a4 {[%clk 00:09:47]} {[%emt 00:00:48]} b6 {[%clk 00:11:44]}
{[%emt 00:00:01]} 20. Qe3 {[%clk 00:09:09]} {[%emt 00:00:42]} Bb7 {[%clk
00:11:43]} {[%emt 00:00:07]} 21. Rd4 {[%clk 00:08:56]} {[%emt 00:00:18]} Rh8
{[%clk 00:11:33]} {[%emt 00:00:15]} 22. Bf3 {[%clk 00:07:42]} {[%emt 00:01:19]}
Bxf3 {[%clk 00:11:17]} {[%emt 00:00:22]} 23. Qxf3 {[%clk 00:07:44]} {[%emt
00:00:02]} Rh5 {[%clk 00:10:42]} {[%emt 00:00:39]} 24. Rd5 {[%clk 00:06:58]}
{[%emt 00:00:53]} Rxd5 {[%clk 00:09:50]} {[%emt 00:00:57]} 25. Qxd5 {[%clk
00:07:01]} {[%emt 00:00:01]} Qd7 {[%clk 00:09:45]} {[%emt 00:00:11]} 26. a5
{[%clk 00:06:07]} {[%emt 00:00:59]} e6 {[%clk 00:09:13]} {[%emt 00:00:37]} 27.
Qd2 {[%clk 00:06:10]} {[%emt 00:00:01]} Qc6 {[%clk 00:09:09]} {[%emt 00:00:09]}
28. Qe3 {[%clk 00:05:23]} {[%emt 00:00:52]} e5 {[%clk 00:08:41]} {[%emt
00:00:34]} 29. a6 {[%clk 00:05:08]} {[%emt 00:00:20]} Qc5 {[%clk 00:07:30]}
{[%emt 00:01:16]} 30. Qe4 {[%clk 00:04:49]} {[%emt 00:00:22]} Qa5 {[%clk
00:03:45]} {[%emt 00:03:51]} 31. Qb7+ {[%clk 00:04:46]} {[%emt 00:00:07]} Kh6
{[%clk 00:03:50]} {[%emt 00:00:01]} 32. Qxa7 {[%clk 00:04:30]} {[%emt
00:00:22]} Qe1+ {[%clk 00:02:53]} {[%emt 00:01:02]} 33. Kg2 {[%clk 00:04:34]}
Qxe2 {[%clk 00:02:56]} {[%emt 00:00:02]} 34. Qa8 {[%clk 00:03:35]} {[%emt
00:01:04]} Kg5 {[%clk 00:03:00]} 35. a7 {[%clk 00:02:38]} {[%emt 00:01:02]} Kg4
{[%clk 00:02:05]} {[%emt 00:01:00]} 36. Qd5 {[%clk 00:02:16]} {[%emt 00:00:27]}
e4 {[%clk 00:00:43]} {[%emt 00:01:27]} 37. a8=Q {[%clk 00:02:15]} {[%emt
00:00:06]} f5 {[%clk 00:00:36]} {[%emt 00:00:13]} 38. Qh8 {[%clk 00:00:58]}
{[%emt 00:01:20]} 1-0

[Event "MČR v rapid šachu družstev 2019"]
[Site "Teplice, Czech Republic"]
[Date "2019.09.15"]
[Round "3.26"]
[White "Serrano, Salvador Eduardo"]
[Black "Lorenc, Tomas"]
[Result "0-1"]
[TimeControl "15 min. + 5s"]
[WhiteElo "2350"]
[BlackElo "2118"]

1. d4 {[%clk 00:15:08]} {[%emt 00:00:02]} Nf6 {[%clk 00:15:08]} {[%emt
00:00:03]} 2. Nf3 {[%clk 00:15:11]} {[%emt 00:00:01]} g6 {[%clk 00:15:12]}
{[%emt 00:00:02]} 3. c4 {[%clk 00:15:11]} {[%emt 00:00:05]} c5 {[%clk
00:15:15]} {[%emt 00:00:02]} 4. d5 {[%clk 00:15:13]} {[%emt 00:00:02]} b5
{[%clk 00:15:18]} {[%emt 00:00:02]} 5. cxb5 {[%clk 00:15:12]} {[%emt 00:00:06]}
a6 {[%clk 00:15:21]} {[%emt 00:00:01]} 6. b6 {[%clk 00:15:11]} {[%emt
00:00:07]} d6 {[%clk 00:14:39]} {[%emt 00:00:47]} 7. a4 {[%clk 00:15:10]}
{[%emt 00:00:06]} a5 {[%clk 00:14:43]} {[%emt 00:00:02]} 8. Nc3 {[%clk
00:15:08]} {[%emt 00:00:06]} Bg7 {[%clk 00:14:41]} {[%emt 00:00:07]} 9. e4
{[%clk 00:14:53]} {[%emt 00:00:21]} Nbd7 {[%clk 00:14:36]} {[%emt 00:00:09]} 10.
Bb5 {[%clk 00:14:54]} {[%emt 00:00:03]} O-O {[%clk 00:14:07]} {[%emt 00:00:35]}
11. O-O {[%clk 00:14:26]} {[%emt 00:00:33]} Qxb6 {[%clk 00:13:50]} {[%emt
00:00:21]} 12. h3 {[%clk 00:13:57]} {[%emt 00:00:36]} Ba6 {[%clk 00:13:47]}
{[%emt 00:00:07]} 13. Nd2 {[%clk 00:13:57]} {[%emt 00:00:05]} Ne5 {[%clk
00:13:10]} {[%emt 00:00:43]} 14. f4 {[%clk 00:13:45]} {[%emt 00:00:16]} Bxb5
{[%clk 00:09:44]} {[%emt 00:03:31]} 15. axb5 {[%clk 00:12:59]} {[%emt
00:00:51]} c4+ {[%clk 00:08:25]} {[%emt 00:01:24]} 16. Kh2 {[%clk 00:13:01]}
{[%emt 00:00:03]} Nd3 {[%clk 00:08:16]} {[%emt 00:00:15]} 17. Nxc4 {[%clk
00:12:51]} {[%emt 00:00:15]} Qd4 {[%clk 00:08:19]} {[%emt 00:00:01]} 18. Nd2
{[%clk 00:07:52]} {[%emt 00:05:04]} Nxc1 {[%clk 00:05:08]} {[%emt 00:03:16]} 19.
Qxc1 {[%clk 00:07:32]} {[%emt 00:00:25]} Nh5 {[%clk 00:04:55]} {[%emt
00:00:18]} 20. Nf3 {[%clk 00:07:07]} {[%emt 00:00:30]} Qc4 {[%clk 00:04:19]}
{[%emt 00:00:41]} 21. Ra4 {[%clk 00:06:51]} {[%emt 00:00:20]} Qc5 {[%clk
00:03:57]} {[%emt 00:00:28]} 22. g4 {[%clk 00:04:30]} {[%emt 00:02:27]} Bxc3
{[%clk 00:03:19]} {[%emt 00:00:42]} 23. gxh5 {[%clk 00:04:24]} {[%emt
00:00:11]} Qxb5 {[%clk 00:02:59]} {[%emt 00:00:25]} 24. Ra2 {[%clk 00:02:38]}
{[%emt 00:01:51]} Qe2+ {[%clk 00:02:55]} {[%emt 00:00:09]} 25. Kg3 {[%clk
00:02:40]} {[%emt 00:00:03]} Rac8 {[%clk 00:02:31]} {[%emt 00:00:29]} 26. Qd1
{[%clk 00:02:19]} {[%emt 00:00:26]} Qxd1 {[%clk 00:02:16]} {[%emt 00:00:20]} 27.
Rxd1 {[%clk 00:02:23]} {[%emt 00:00:01]} Bb4 {[%clk 00:02:20]} {[%emt
00:00:01]} 28. Nd4 {[%clk 00:02:22]} {[%emt 00:00:07]} Rc4 {[%clk 00:02:06]}
{[%emt 00:00:18]} 29. Kf3 {[%clk 00:02:20]} {[%emt 00:00:08]} f5 {[%clk
00:01:11]} {[%emt 00:01:00]} 30. exf5 {[%clk 00:02:12]} {[%emt 00:00:13]} Bc5
{[%clk 00:01:07]} {[%emt 00:00:08]} 31. Ne6 {[%clk 00:01:18]} {[%emt 00:00:58]}
Rxf5 {[%clk 00:00:56]} {[%emt 00:00:17]} 32. hxg6 {[%clk 00:01:22]} {[%emt
00:00:01]} hxg6 {[%clk 00:00:54]} {[%emt 00:00:07]} 33. Rxa5 {[%clk 00:01:26]}
{[%emt 00:00:02]} Rb4 {[%clk 00:00:48]} {[%emt 00:00:10]} 34. Ra8+ {[%clk
00:01:01]} {[%emt 00:00:31]} Kh7 {[%clk 00:00:52]} {[%emt 00:00:01]} 35. Rd2
{[%clk 00:00:49]} {[%emt 00:00:17]} Rb3+ {[%clk 00:00:43]} {[%emt 00:00:13]} 36.
Kg4 {[%clk 00:00:51]} {[%emt 00:00:03]} Be3 {[%clk 00:00:42]} {[%emt 00:00:07]}
37. Rc2 {[%clk 00:00:35]} {[%emt 00:00:20]} Rxd5 {[%clk 00:00:11]} {[%emt
00:00:36]} 38. Rcc8 {[%clk 00:00:38]} {[%emt 00:00:02]} Bd4 {[%clk 00:00:15]}
0-1

[Event "MČR v rapid šachu družstev 2019"]
[Site "Teplice, Czech Republic"]
[Date "2019.09.15"]
[Round "3.27"]
[White "Spicka, Jan"]
[Black "Filipi, Stepan"]
[Result "0-1"]
[TimeControl "15 min. + 5s"]
[WhiteElo "1837"]
[BlackElo "2210"]

1. e4 {[%clk 00:15:03]} {[%emt 00:00:07]} c5 {[%clk 00:15:09]} {[%emt
00:00:02]} 2. Nf3 {[%clk 00:15:06]} {[%emt 00:00:02]} e6 {[%clk 00:15:13]}
{[%emt 00:00:01]} 3. d4 {[%clk 00:15:05]} {[%emt 00:00:06]} cxd4 {[%clk
00:15:17]} {[%emt 00:00:01]} 4. Nxd4 {[%clk 00:15:07]} {[%emt 00:00:03]} a6
{[%clk 00:15:21]} {[%emt 00:00:01]} 5. Nc3 {[%clk 00:14:49]} {[%emt 00:00:23]}
Qc7 {[%clk 00:15:25]} {[%emt 00:00:01]} 6. Be3 {[%clk 00:14:28]} {[%emt
00:00:26]} Bb4 {[%clk 00:15:28]} {[%emt 00:00:01]} 7. Bd2 {[%clk 00:13:27]}
{[%emt 00:01:06]} Nf6 {[%clk 00:15:21]} {[%emt 00:00:12]} 8. Bd3 {[%clk
00:13:27]} {[%emt 00:00:05]} Nc6 {[%clk 00:14:26]} {[%emt 00:01:00]} 9. Nxc6
{[%clk 00:13:23]} {[%emt 00:00:09]} dxc6 {[%clk 00:14:17]} {[%emt 00:00:15]} 10.
Qe2 {[%clk 00:12:58]} {[%emt 00:00:30]} e5 {[%clk 00:14:12]} {[%emt 00:00:10]}
11. h3 {[%clk 00:12:37]} {[%emt 00:00:26]} Be6 {[%clk 00:13:35]} {[%emt
00:00:42]} 12. O-O {[%clk 00:12:29]} {[%emt 00:00:13]} Be7 {[%clk 00:13:12]}
{[%emt 00:00:27]} 13. Be3 {[%clk 00:11:59]} {[%emt 00:00:35]} b5 {[%clk
00:12:54]} {[%emt 00:00:24]} 14. a4 {[%clk 00:11:07]} {[%emt 00:00:57]} O-O
{[%clk 00:12:56]} {[%emt 00:00:02]} 15. axb5 {[%clk 00:10:37]} {[%emt
00:00:36]} axb5 {[%clk 00:12:57]} {[%emt 00:00:03]} 16. Rfc1 {[%clk 00:08:56]}
{[%emt 00:01:45]} h6 {[%clk 00:12:12]} {[%emt 00:00:52]} 17. f3 {[%clk
00:07:40]} {[%emt 00:01:20]} Nh5 {[%clk 00:11:47]} {[%emt 00:00:30]} 18. Nd1
{[%clk 00:07:03]} {[%emt 00:00:42]} Rfd8 {[%clk 00:10:36]} {[%emt 00:01:16]} 19.
Kh2 {[%clk 00:05:59]} {[%emt 00:01:09]} Bh4 {[%clk 00:09:21]} {[%emt 00:01:21]}
20. g4 {[%clk 00:03:50]} {[%emt 00:02:13]} Bg3+ {[%clk 00:08:43]} {[%emt
00:00:43]} 21. Kg2 {[%clk 00:02:43]} {[%emt 00:01:11]} Nf4+ {[%clk 00:08:46]}
{[%emt 00:00:04]} 22. Bxf4 {[%clk 00:02:47]} Bxf4 {[%clk 00:08:50]} {[%emt
00:00:01]} 23. Rcb1 {[%clk 00:02:38]} {[%emt 00:00:13]} c5 {[%clk 00:08:40]}
{[%emt 00:00:15]} 24. Rxa8 {[%clk 00:02:18]} {[%emt 00:00:25]} Rxa8 {[%clk
00:08:45]} 25. Bxb5 {[%clk 00:01:58]} {[%emt 00:00:26]} Rd8 {[%clk 00:08:36]}
{[%emt 00:00:13]} 26. Ne3 {[%clk 00:00:58]} {[%emt 00:01:05]} c4 {[%clk
00:08:19]} {[%emt 00:00:22]} 27. Rd1 {[%clk 00:00:41]} {[%emt 00:00:22]} Rxd1
{[%clk 00:07:36]} {[%emt 00:00:48]} 28. Nxd1 {[%clk 00:00:44]} {[%emt
00:00:02]} Qc5 {[%clk 00:07:03]} {[%emt 00:00:37]} 29. Ba4 {[%clk 00:00:30]}
{[%emt 00:00:21]} Qb4 {[%clk 00:06:16]} {[%emt 00:00:51]} 30. Bc6 {[%clk
00:00:24]} {[%emt 00:00:10]} Qb6 {[%clk 00:04:11]} {[%emt 00:02:11]} 31. Bd5
{[%clk 00:00:22]} {[%emt 00:00:06]} Bxd5 {[%clk 00:03:57]} {[%emt 00:00:20]} 32.
exd5 {[%clk 00:00:27]} Qd4 {[%clk 00:03:45]} {[%emt 00:00:16]} 33. Nc3 {[%clk
00:00:24]} {[%emt 00:00:08]} Bc1 {[%clk 00:03:17]} {[%emt 00:00:33]} 34. Qd1
{[%clk 00:00:10]} {[%emt 00:00:19]} Bxb2 {[%clk 00:03:03]} {[%emt 00:00:19]} 35.
d6 {[%clk 00:00:07]} {[%emt 00:00:08]} Bxc3 {[%clk 00:02:57]} {[%emt 00:00:10]}
36. Qxd4 {[%emt 00:00:12]} Bb2 0-1

[Event "MČR v rapid šachu družstev 2019"]
[Site "Teplice, Czech Republic"]
[Date "2019.09.15"]
[Round "3.28"]
[White "Lacina, Filip"]
[Black "Lorencova, Vera"]
[Result "1/2-1/2"]
[TimeControl "15 min. + 5s"]
[WhiteElo "2027"]
[BlackElo "1873"]

1. e4 {[%clk 00:15:06]} {[%emt 00:32:48]} d5 {[%clk 00:15:09]} 2. exd5 {[%clk
00:15:09]} {[%emt 00:00:02]} Nf6 {[%clk 00:15:14]} 3. d4 {[%clk 00:15:12]}
{[%emt 00:00:03]} Nxd5 {[%clk 00:15:17]} {[%emt 00:00:01]} 4. Nf3 {[%clk
00:15:15]} {[%emt 00:00:03]} g6 {[%clk 00:15:19]} {[%emt 00:00:03]} 5. c4
{[%clk 00:15:08]} {[%emt 00:00:11]} Nb6 {[%clk 00:15:22]} {[%emt 00:00:01]} 6.
h3 {[%clk 00:14:52]} {[%emt 00:00:22]} Bg7 {[%clk 00:15:25]} {[%emt 00:00:02]}
7. Nc3 {[%clk 00:14:55]} {[%emt 00:00:01]} O-O {[%clk 00:15:23]} {[%emt
00:00:07]} 8. Be3 {[%clk 00:14:47]} {[%emt 00:00:13]} Nc6 {[%clk 00:15:24]}
{[%emt 00:00:05]} 9. Be2 {[%clk 00:14:14]} {[%emt 00:00:38]} Bf5 {[%clk
00:15:20]} {[%emt 00:00:10]} 10. g4 {[%clk 00:14:02]} {[%emt 00:00:17]} Bc8
{[%clk 00:15:09]} {[%emt 00:00:15]} 11. Qd2 {[%clk 00:13:41]} {[%emt 00:00:25]}
e5 {[%clk 00:14:52]} {[%emt 00:00:23]} 12. d5 {[%clk 00:12:05]} {[%emt
00:01:41]} Na5 {[%clk 00:13:34]} {[%emt 00:01:23]} 13. b3 {[%clk 00:12:05]}
{[%emt 00:00:05]} e4 {[%clk 00:12:48]} {[%emt 00:00:52]} 14. Nd4 {[%clk
00:11:52]} {[%emt 00:00:16]} c6 {[%clk 00:11:45]} {[%emt 00:01:09]} 15. dxc6
{[%clk 00:11:26]} {[%emt 00:00:31]} Nxc6 {[%clk 00:11:46]} {[%emt 00:00:04]} 16.
Rd1 {[%clk 00:08:58]} {[%emt 00:02:32]} Qe7 {[%clk 00:09:40]} {[%emt 00:02:10]}
17. O-O {[%clk 00:05:48]} {[%emt 00:03:16]} h5 {[%clk 00:06:15]} {[%emt
00:03:31]} 18. Bg5 {[%clk 00:04:00]} {[%emt 00:01:53]} Qe5 {[%clk 00:05:24]}
{[%emt 00:00:56]} 19. Ncb5 {[%clk 00:02:53]} {[%emt 00:01:12]} Nxd4 {[%clk
00:02:46]} {[%emt 00:02:43]} 20. Nxd4 {[%clk 00:02:53]} {[%emt 00:00:06]} hxg4
{[%clk 00:02:32]} {[%emt 00:00:19]} 21. hxg4 {[%clk 00:02:37]} {[%emt
00:00:21]} Nd7 {[%clk 00:01:57]} {[%emt 00:00:40]} 22. Qf4 {[%clk 00:00:59]}
{[%emt 00:01:42]} Qxf4 {[%clk 00:01:39]} {[%emt 00:00:24]} 23. Bxf4 {[%clk
00:01:02]} {[%emt 00:00:02]} Nf6 {[%clk 00:01:42]} {[%emt 00:00:01]} 24. g5
{[%clk 00:01:00]} {[%emt 00:00:07]} Ng4 {[%clk 00:01:34]} {[%emt 00:00:13]} 25.
Nb5 {[%clk 00:00:27]} {[%emt 00:00:37]} Bf5 {[%clk 00:01:21]} {[%emt 00:00:19]}
26. Nd6 {[%clk 00:00:27]} {[%emt 00:00:05]} Ne5 {[%clk 00:00:55]} {[%emt
00:00:32]} 27. Nxf5 {[%clk 00:00:26]} {[%emt 00:00:06]} gxf5 {[%clk 00:00:58]}
{[%emt 00:00:02]} 28. Bxe5 {[%clk 00:00:27]} {[%emt 00:00:03]} Bxe5 {[%clk
00:01:01]} {[%emt 00:00:03]} 29. Rd7 {[%clk 00:00:27]} {[%emt 00:00:04]} Rab8
{[%clk 00:00:54]} {[%emt 00:00:12]} 30. Rfd1 {[%clk 00:00:28]} {[%emt
00:00:04]} Rfe8 {[%clk 00:00:45]} {[%emt 00:00:14]} 31. Bh5 {[%clk 00:00:29]}
{[%emt 00:00:04]} Rf8 {[%clk 00:00:42]} {[%emt 00:00:08]} 32. g6 {[%clk
00:00:28]} {[%emt 00:00:06]} fxg6 {[%clk 00:00:40]} {[%emt 00:00:07]} 33. Bxg6
{[%clk 00:00:32]} Rf6 {[%clk 00:00:30]} {[%emt 00:00:16]} 34. Bh5 {[%clk
00:00:23]} {[%emt 00:00:13]} f4 {[%clk 00:00:30]} {[%emt 00:00:05]} 35. R1d5
{[%clk 00:00:14]} {[%emt 00:00:14]} Rf5 {[%clk 00:00:22]} {[%emt 00:00:13]} 36.
Be2 {[%clk 00:00:11]} {[%emt 00:00:08]} Rg5+ {[%clk 00:00:24]} {[%emt
00:00:03]} 37. Kf1 {[%clk 00:00:14]} {[%emt 00:00:02]} Bf6 {[%clk 00:00:25]}
{[%emt 00:00:04]} 38. c5 {[%clk 00:00:16]} {[%emt 00:00:03]} f3 {[%clk
00:00:21]} {[%emt 00:00:10]} 39. Bc4 {[%clk 00:00:18]} {[%emt 00:00:02]} Kh8
{[%clk 00:00:12]} {[%emt 00:00:14]} 40. Rxg5 {[%clk 00:00:19]} {[%emt
00:00:05]} Bxg5 {[%clk 00:00:17]} 41. Rd5 {[%clk 00:00:22]} {[%emt 00:00:02]}
Bf4 {[%clk 00:00:19]} {[%emt 00:00:03]} 42. Rd7 {[%clk 00:00:22]} {[%emt
00:00:04]} Rf8 {[%clk 00:00:10]} {[%emt 00:00:14]} 43. b4 {[%clk 00:00:17]}
{[%emt 00:00:11]} Rf6 {[%clk 00:00:14]} 44. Rd8+ {[%clk 00:00:17]} {[%emt
00:00:04]} Kg7 {[%clk 00:00:18]} {[%emt 00:00:02]} 45. Rg8+ {[%clk 00:00:21]}
{[%emt 00:00:01]} Kh7 {[%clk 00:00:21]} {[%emt 00:00:01]} 46. Re8 {[%clk
00:00:25]} {[%emt 00:00:01]} Rh6 {[%clk 00:00:23]} {[%emt 00:00:03]} 47. Re7+
{[%clk 00:00:26]} {[%emt 00:00:04]} Kh8 {[%clk 00:00:26]} {[%emt 00:00:02]} 48.
Re8+ {[%clk 00:00:30]} {[%emt 00:00:03]} Kh7 {[%clk 00:00:30]} 49. Re7+ {[%clk
00:00:33]} {[%emt 00:00:02]} Kh8 {[%clk 00:00:34]} 50. Re8+ {[%clk 00:00:33]}
{[%emt 00:00:05]} 1/2-1/2

[Event "MČR v rapid šachu družstev 2019"]
[Site "Teplice, Czech Republic"]
[Date "2019.09.15"]
[Round "4.1"]
[White "Stocek, Jiri"]
[Black "Vykouk, Jan"]
[Result "1-0"]
[TimeControl "15 min. + 5s"]
[WhiteElo "2507"]
[BlackElo "2428"]

1. Nf3 {[%clk 00:15:08]} {[%emt 00:00:02]} Nf6 {[%clk 00:15:08]} {[%emt
00:00:02]} 2. g3 {[%clk 00:15:11]} {[%emt 00:00:02]} b6 {[%clk 00:15:08]}
{[%emt 00:00:06]} 3. Bg2 {[%clk 00:15:12]} {[%emt 00:00:03]} Bb7 {[%clk
00:15:11]} {[%emt 00:00:02]} 4. O-O {[%clk 00:15:14]} {[%emt 00:00:02]} g6
{[%clk 00:15:14]} {[%emt 00:00:03]} 5. d3 {[%clk 00:14:49]} {[%emt 00:00:30]}
d5 {[%clk 00:15:00]} {[%emt 00:00:19]} 6. c4 {[%clk 00:14:48]} {[%emt
00:00:06]} Bg7 {[%clk 00:14:54]} {[%emt 00:00:11]} 7. cxd5 {[%clk 00:14:45]}
{[%emt 00:00:08]} Nxd5 {[%clk 00:14:57]} {[%emt 00:00:03]} 8. e4 {[%clk
00:14:42]} {[%emt 00:00:07]} Nf6 {[%clk 00:14:59]} {[%emt 00:00:03]} 9. e5
{[%clk 00:14:40]} {[%emt 00:00:07]} Nd5 {[%clk 00:15:01]} {[%emt 00:00:03]} 10.
e6 {[%clk 00:14:35]} {[%emt 00:00:10]} f6 {[%clk 00:15:05]} {[%emt 00:00:02]}
11. d4 {[%clk 00:14:12]} {[%emt 00:00:28]} O-O {[%clk 00:15:02]} {[%emt
00:00:07]} 12. Re1 {[%clk 00:14:15]} {[%emt 00:00:02]} c5 {[%clk 00:14:39]}
{[%emt 00:00:29]} 13. dxc5 {[%clk 00:13:43]} {[%emt 00:00:37]} Nb4 {[%clk
00:14:25]} {[%emt 00:00:19]} 14. Na3 {[%clk 00:11:56]} {[%emt 00:01:52]} Nd3
{[%clk 00:14:13]} {[%emt 00:00:17]} 15. Re3 {[%clk 00:11:15]} {[%emt 00:00:46]}
Nxc5 {[%clk 00:14:15]} {[%emt 00:00:03]} 16. Qc2 {[%clk 00:10:15]} {[%emt
00:01:04]} Nc6 {[%clk 00:14:14]} {[%emt 00:00:06]} 17. Bd2 {[%clk 00:10:09]}
{[%emt 00:00:11]} Rc8 {[%clk 00:11:41]} {[%emt 00:02:39]} 18. Bc3 {[%clk
00:09:27]} {[%emt 00:00:46]} Bh6 {[%clk 00:10:32]} {[%emt 00:01:14]} 19. Rd1
{[%clk 00:09:23]} {[%emt 00:00:08]} Qc7 {[%clk 00:10:26]} {[%emt 00:00:12]} 20.
Nb5 {[%clk 00:09:12]} {[%emt 00:00:16]} Qb8 {[%clk 00:10:29]} {[%emt 00:00:03]}
21. Ree1 {[%clk 00:09:09]} {[%emt 00:00:07]} a6 {[%clk 00:10:33]} {[%emt
00:00:02]} 22. Nbd4 {[%clk 00:08:18]} {[%emt 00:00:55]} b5 {[%clk 00:10:30]}
{[%emt 00:00:09]} 23. Nxc6 {[%clk 00:07:57]} {[%emt 00:00:26]} Bxc6 {[%clk
00:10:33]} {[%emt 00:00:02]} 24. Bb4 {[%clk 00:07:14]} {[%emt 00:00:47]} Nb7
{[%clk 00:08:09]} {[%emt 00:02:29]} 25. Qb3 {[%clk 00:07:01]} {[%emt 00:00:18]}
Rfe8 {[%clk 00:08:04]} {[%emt 00:00:09]} 26. Rd7 {[%clk 00:06:45]} {[%emt
00:00:21]} Bf8 {[%clk 00:08:08]} {[%emt 00:00:01]} 27. Nd4 {[%clk 00:06:32]}
{[%emt 00:00:17]} Bxg2 {[%clk 00:08:08]} {[%emt 00:00:06]} 28. Kxg2 {[%clk
00:06:34]} {[%emt 00:00:03]} a5 {[%clk 00:08:12]} 29. Qd5 {[%clk 00:06:04]}
{[%emt 00:00:36]} axb4 {[%clk 00:07:19]} {[%emt 00:00:59]} 30. Qxb7 {[%clk
00:05:11]} {[%emt 00:00:58]} Qxb7+ {[%clk 00:07:14]} {[%emt 00:00:11]} 31. Rxb7
{[%clk 00:05:14]} {[%emt 00:00:02]} Rc4 {[%clk 00:06:59]} {[%emt 00:00:20]} 32.
Nxb5 {[%clk 00:04:30]} {[%emt 00:00:49]} Rc2 {[%clk 00:07:03]} {[%emt
00:00:01]} 33. Nd4 {[%clk 00:04:18]} {[%emt 00:00:17]} Rxb2 {[%clk 00:07:04]}
{[%emt 00:00:05]} 34. Re2 {[%clk 00:04:21]} {[%emt 00:00:02]} Rxe2 {[%clk
00:07:02]} {[%emt 00:00:06]} 35. Nxe2 {[%clk 00:04:24]} {[%emt 00:00:01]} Ra8
{[%clk 00:07:06]} {[%emt 00:00:01]} 36. Rxb4 {[%clk 00:03:59]} {[%emt
00:00:30]} Rxa2 {[%clk 00:07:10]} {[%emt 00:00:02]} 37. Nd4 {[%clk 00:03:58]}
{[%emt 00:00:06]} Ra6 {[%clk 00:06:09]} {[%emt 00:01:05]} 38. g4 {[%clk
00:03:53]} {[%emt 00:00:10]} Rd6 {[%clk 00:05:33]} {[%emt 00:00:42]} 39. Kf3
{[%clk 00:03:43]} {[%emt 00:00:14]} f5 {[%clk 00:05:29]} {[%emt 00:00:10]} 40.
gxf5 {[%clk 00:03:44]} {[%emt 00:00:03]} gxf5 {[%clk 00:05:33]} {[%emt
00:00:01]} 41. Kf4 {[%clk 00:03:39]} {[%emt 00:00:09]} Bh6+ {[%clk 00:04:55]}
{[%emt 00:00:44]} 42. Kxf5 {[%emt 00:00:12]} Rd5+ 43. Ke4 {[%clk 00:03:33]}
{[%emt 00:00:04]} Rh5 {[%clk 00:04:55]} {[%emt 00:00:10]} 44. Nf5 {[%clk
00:03:32]} {[%emt 00:00:06]} Rxh2 {[%clk 00:04:42]} {[%emt 00:00:19]} 45. Rb8+
{[%clk 00:03:16]} {[%emt 00:00:20]} Bf8 {[%clk 00:04:45]} {[%emt 00:00:01]} 46.
Nxe7+ {[%clk 00:03:19]} {[%emt 00:00:02]} Kg7 {[%clk 00:04:50]} 47. Nf5+ {[%clk
00:03:22]} {[%emt 00:00:03]} Kf6 {[%clk 00:04:46]} {[%emt 00:00:09]} 48. Rxf8+
{[%clk 00:03:22]} {[%emt 00:00:04]} Kxe6 {[%clk 00:04:49]} {[%emt 00:00:02]} 49.
f4 {[%clk 00:03:10]} {[%emt 00:00:17]} h5 {[%clk 00:04:50]} {[%emt 00:00:05]}
50. Rh8 {[%clk 00:03:02]} {[%emt 00:00:13]} Kf6 {[%clk 00:04:40]} {[%emt
00:00:15]} 51. Rh6+ {[%clk 00:03:02]} {[%emt 00:00:04]} Kf7 {[%clk 00:04:44]}
{[%emt 00:00:02]} 52. Kf3 {[%clk 00:02:55]} {[%emt 00:00:11]} Rh3+ {[%clk
00:04:30]} {[%emt 00:00:19]} 53. Kg2 {[%clk 00:02:54]} {[%emt 00:00:06]} Ra3
{[%clk 00:04:33]} {[%emt 00:00:02]} 54. Rxh5 {[%clk 00:02:39]} {[%emt
00:00:19]} Kg6 {[%clk 00:04:37]} {[%emt 00:00:02]} 55. Rg5+ {[%clk 00:02:42]}
{[%emt 00:00:02]} Kf6 {[%clk 00:04:40]} {[%emt 00:00:02]} 56. Ng3 {[%clk
00:02:37]} {[%emt 00:00:09]} Rb3 {[%clk 00:04:40]} {[%emt 00:00:06]} 57. Kh3
{[%clk 00:02:36]} {[%emt 00:00:05]} 1-0